bitfinex-derivatives/quotes_ETHF0:USTF0_20250621
["timestamp","ask_amount","ask_price","bid_price","bid_amount"]
[1750549217972,3.2078,2239.1,2238.4,4.10105]
[1750549218275,0.89302,2239.0,2238.4,3.2078]
[1750549218475,3.2078,2239.1,2238.4,6.8316]
[1750549218774,3.2078,2239.1,2238.4,3.6238]
[1750549218961,3.5765,2239.0,2238.4,6.8316]
[1750549219473,3.2078,2239.1,2238.4,6.8316]
[1750549219672,17.132,2239.5,2239.0,4.10079]
[1750549219868,17.132,2239.5,2239.1,6.6546]
[1750549220068,3.2078,2239.7,2239.6,0.89277]
[1750549220372,17.138,2240.3,2239.4,3.2078]
[1750549220373,4.10034,2240.2,2239.4,3.2078]
[1750549220673,4.10034,2240.2,2239.1,3.4468]
[1750549220674,3.2078,2240.2,2239.9,3.2078]
[1750549220884,3.2078,2240.2,2239.6,0.89275]
[1750549221167,3.5765,2240.2,2239.7,4.10051]
[1750549221380,3.2078,2240.5,2239.7,4.10051]
[1750549221381,3.2078,2240.5,2239.8,3.4468]
[1750549221879,3.2078,2241.1,2240.3,3.2078]
[1750549222064,3.2078,2241.1,2240.7,0.89229]
[1750549222267,3.2078,2241.1,2240.4,3.3793]
[1750549222268,17.138,2241.4,2240.8,3.2078]
[1750549222467,0.89227,2240.9,2240.4,3.3793]
[1750549222665,3.2078,2240.5,2239.9,3.2078]
[1750549222866,3.2078,2240.6,2240.0,3.3793]
[1750549223072,3.4713,2241.3,2240.0,3.3793]
[1750549223073,3.2078,2241.0,2240.0,3.3793]
[1750549223267,3.2078,2240.7,2240.0,4.27188]
[1750549223574,4.10015,2240.7,2240.1,0.89256]
[1750549223771,3.2078,2240.3,2239.0,3.2078]
[1750549224073,3.2078,2240.0,2239.7,0.8927]
[1750549224275,3.2078,2240.7,2240.3,0.89245]
[1750549224468,3.4713,2241.2,2240.0,4.10039]
[1750549224672,3.2078,2240.4,2239.8,3.3793]
[1750549224971,3.2078,2240.7,2239.9,0.89263]
[1750549225273,3.2078,2240.4,2239.8,3.3793]
[1750549225578,0.89261,2240.0,2239.4,7.55783]
[1750549225771,3.2078,2240.4,2239.8,0.89266]
[1750549225772,3.3991,2240.3,2239.8,0.89266]
[1750549225979,0.89255,2240.2,2239.8,3.4134]
[1750549226176,3.2078,2240.4,2239.8,3.4134]
[1750549226476,3.2078,2240.4,2239.7,4.10052]
[1750549226477,3.3991,2240.3,2239.7,4.10052]
[1750549226773,3.3991,2240.3,2239.7,3.2078]
[1750549226968,3.2078,2239.9,2239.1,3.2078]
[1750549227173,3.2078,2239.9,2238.9,3.2078]
[1750549227366,3.2078,2239.6,2238.9,3.2078]
[1750549227567,0.89275,2239.7,2239.2,3.2078]
[1750549227768,3.2078,2239.6,2238.9,3.2078]
[1750549227965,5.99e-06,2240.0,2239.9,0.89265]
[1750549228169,3.2078,2241.3,2240.0,12.4503347]
[1750549228378,3.2078,2240.9,2240.1,6.6779]
[1750549228676,3.2078,2240.5,2239.7,3.2078]
[1750549228875,0.89255,2240.2,2239.7,3.2078]
[1750549229064,0.89254,2240.2,2239.7,0.89271]
[1750549229267,3.2078,2240.1,2239.4,3.2078]
[1750549229468,3.2078,2240.1,2239.4,4.10062]
[1750549229469,0.89267,2239.9,2239.4,4.10062]
[1750549229671,6.886,2239.8,2239.0,4.10078]
[1750549229864,0.89275,2239.7,2239.3,3.2078]
[1750549230074,3.2078,2239.5,2238.4,3.2078]
[1750549230272,16.831,2239.8,2238.9,3.2078]
[1750549230474,50.3348,2239.9,2239.2,3.2078]
[1750549230673,0.89279,2239.6,2239.2,3.2078]
[1750549230975,3.6782,2239.8,2239.2,3.2078]
[1750549231279,3.2078,2239.3,2238.8,3.2078]
[1750549231475,3.2078,2239.6,2239.2,3.2078]
[1750549231777,3.2078,2239.6,2238.5,5.70312]
[1750549231778,50.3348,2239.9,2239.3,3.2078]
[1750549232080,16.834,2240.2,2239.6,3.2078]
[1750549232283,16.834,2240.2,2239.7,3.4368]
[1750549232478,4.27263,2240.2,2239.7,3.4368]
[1750549232682,4.27263,2240.2,2239.7,4.32951]
[1750549232982,3.2078,2240.3,2239.7,3.4368]
[1750549233279,3.2078,2240.3,2240.0,0.89259]
[1750549233483,20.5172,2240.7,2239.3,2.2322]
[1750549233484,20.0418,2240.7,2240.6,0.89237]
[1750549233686,0.08923392,2241.3,2240.8,0.89227]
[1750549233687,0.98134392,2241.3,2240.8,0.89227]
[1750549233878,0.08923392,2241.3,2240.7,3.4588]
[1750549234478,3.29703392,2241.3,2240.7,3.4588]
[1750549234686,3.29703392,2241.3,2240.0,3.498]
[1750549234687,0.89231,2240.8,2240.2,0.89249]
[1750549234980,3.2078,2240.7,2240.1,3.4588]
[1750549235177,0.89224,2241.0,2240.4,4.10023]
[1750549235383,0.8923,2240.8,2240.3,0.89248]
[1750549235584,0.89227,2240.9,2240.4,4.35124]
[1750549236179,0.89227,2240.9,2240.4,4.35123]
[1750549236377,3.3872,2241.0,2240.4,4.35123]
[1750549236378,0.8923,2240.8,2240.4,3.4588]
[1750549236980,3.2078,2240.8,2240.0,3.498]
[1750549237178,3.2078,2240.5,2239.5,3.2078]
[1750549237385,3.2078,2239.9,2238.8,8.99442]
[1750549237576,0.89266,2239.9,2239.4,4.10063]
[1750549237880,0.89268,2239.9,2239.5,3.4045]
[1750549238273,20.0398,2240.2,2239.5,3.4045]
[1750549238587,16.832,2240.2,2239.9,4.10042]
[1750549238883,16.832,2240.2,2240.0,3.4045]
[1750549239083,16.832,2240.2,2240.0,6.6123]
[1750549239280,20.0398,2240.2,2239.4,3.2078]
[1750549239480,20.93235,2240.2,2239.7,0.89271]
[1750549239677,20.0398,2240.2,2239.8,4.29718]
[1750549240376,3.2078,2240.2,2239.8,3.4045]
[1750549240571,0.8923,2240.8,2240.3,0.89247]
[1750549240776,6.7645,2241.8,2240.7,3.2078]
[1750549240990,400.0,2242.0,2241.6,3.2078]
[1750549241278,400.0,2242.0,2241.9,4.09965]
[1750549241481,400.0,2242.0,2241.7,0.89189]
[1750549241683,400.0,2242.0,2241.5,3.2078]
[1750549241881,403.2078,2242.0,2241.6,3.6298]
[1750549242386,400.0,2242.0,2241.7,3.2078]
[1750549242582,400.0,2242.0,2241.8,3.6298]
[1750549242884,3.2078,2241.9,2241.1,3.2078]
[1750549243084,3.2078,2241.3,2240.7,3.2078]
[1750549243281,3.2078,2241.3,2240.6,3.72]
[1750549243282,4.09981,2241.6,2240.8,3.2078]
[1750549243480,3.2078,2241.6,2240.8,3.2078]
[1750549243689,20.0358,2241.9,2241.3,3.2078]
[1750549243990,20.0358,2241.9,2241.1,3.2078]
[1750549244183,400.89183,2242.0,2241.4,3.2078]
[1750549244381,400.0,2242.0,2241.4,3.2078]
[1750549244586,3.2078,2241.5,2240.8,3.2078]
[1750549244784,3.2078,2241.5,2240.3,3.3603]
[1750549244785,16.828,2241.5,2241.0,3.2078]
[1750549244980,3.2078,2241.7,2241.0,3.2078]
[1750549245181,3.2078,2241.7,2241.3,0.89207]
[1750549245381,400.0,2242.0,2241.7,0.89191]
[1750549245586,400.0,2242.0,2241.3,3.2078]
[1750549245787,400.0,2242.0,2241.6,0.89195]
[1750549245979,400.0,2242.0,2241.8,0.89187]
[1750549246284,400.0,2242.0,2240.9,3.3549]
[1750549246492,3.2078,2241.0,2239.3,3.2078]
[1750549246788,0.06847599,2240.2,2239.3,3.2078]
[1750549246988,0.06847599,2240.2,2240.0,0.89261]
[1750549247195,0.06847599,2240.2,2239.8,0.89265]
[1750549247396,3.2078,2240.0,2239.2,12.4503347]
[1750549247698,3.2078,2240.0,2236.4,294.456]
[1750549247699,3.2078,2239.3,2238.1,3.2078]
[1750549247880,3.2078,2239.3,2237.5,3.4814]
[1750549247881,0.8934,2238.1,2237.5,3.4814]
[1750549248196,3.2078,2237.9,2237.5,3.4814]
[1750549248386,3.2078,2237.8,2236.8,3.2078]
[1750549248586,3.2078,2237.7,2236.8,3.2078]
[1750549248890,3.2078,2237.3,2237.0,0.89379]
[1750549249387,3.2078,2237.3,2236.8,3.2078]
[1750549249586,3.2078,2238.1,2237.4,0.89361]
[1750549249790,3.2078,2238.1,2237.1,3.2078]
[1750549249996,3.2078,2238.1,2237.4,0.89362]
[1750549250289,3.2078,2238.1,2237.1,3.2078]
[1750549250486,3.2078,2238.1,2237.4,3.2078]
[1750549250682,3.2078,2238.3,2237.1,15.6581347]
[1750549250884,47.112,2238.8,2237.2,2.23429]
[1750549250885,3.2078,2238.1,2237.2,2.23429]
[1750549251090,3.2078,2238.4,2238.1,0.89336]
[1750549251390,3.2078,2239.1,2238.0,5.44131]
[1750549251609,3.2078,2239.1,2238.0,3.2078]
[1750549251790,3.2078,2238.4,2238.0,0.89339]
[1750549251983,3.2078,2238.4,2237.6,3.2078]
[1750549252287,3.2078,2239.5,2238.8,0.89307]
[1750549252488,4.10062,2239.5,2238.9,0.89304]
[1750549252789,0.8931,2238.8,2238.3,3.4487]
[1750549252985,3.2078,2238.6,2237.7,3.2078]
[1750549253385,3.2078,2238.6,2238.0,0.89339]
[1750549253887,4.10098,2238.6,2237.9,0.89342]
[1750549254091,4.10098,2238.6,2238.0,0.8934]
[1750549254391,3.2078,2238.3,2237.3,67.4127]
[1750549254592,3.2078,2238.3,2237.7,0.8935]
[1750549254785,3.2078,2238.0,2237.3,3.4487]
[1750549254989,3.2078,2237.7,2236.9,3.6626]
[1750549255189,3.2078,2237.7,2237.2,0.89369]
[1750549255390,3.2078,2237.7,2237.3,0.89365]
[1750549255687,3.2078,2237.7,2237.4,0.89363]
[1750549255996,3.2078,2237.7,2236.9,3.6626]
[1750549256695,4.10134,2237.7,2237.1,0.89376]
[1750549256889,3.2078,2237.4,2236.9,3.6626]
[1750549257396,3.4749,2238.2,2236.9,3.2078]
[1750549257397,3.2078,2237.8,2236.9,3.2078]
[1750549257589,3.2078,2237.0,2235.8,3.2078]
[1750549258090,3.2078,2237.4,2236.2,12.4503347]
[1750549258297,4.10144,2237.4,2236.9,0.89381]
[1750549258482,3.2078,2237.4,2236.5,3.2078]
[1750549258686,3.2078,2237.1,2236.6,0.89394]
[1750549258883,3.2078,2237.1,2236.5,0.89398]
[1750549259104,3.2078,2237.1,2236.6,0.89394]
[1750549259288,3.2078,2237.1,2236.8,0.89386]
[1750549259488,3.2078,2237.4,2236.5,3.2078]
[1750549259701,3.2078,2238.1,2236.9,3.2078]
[1750549259889,3.2078,2237.5,2236.9,3.2078]
[1750549260088,12.4503347,2238.3,2236.9,3.2078]
[1750549260089,3.2078,2237.8,2236.9,3.2078]
[1750549260285,3.2078,2237.5,2236.9,3.2078]
[1750549260490,3.2078,2237.5,2237.1,0.89374]
[1750549260789,3.2078,2237.5,2236.5,9.18529]
[1750549260790,4.1014,2237.5,2237.0,0.89378]
[1750549260990,3.2078,2237.2,2236.7,3.2078]
[1750549261197,3.2078,2237.2,2237.0,0.89379]
[1750549261396,3.2078,2237.2,2237.1,0.89376]
[1750549261597,3.2078,2238.5,2238.4,0.89324]
[1750549261795,3.39353423,2239.6,2237.8,3.2078]
[1750549261796,3.2078,2238.8,2237.8,3.2078]
[1750549261989,3.2078,2239.1,2237.9,3.2078]
[1750549262189,3.2078,2239.1,2238.2,3.2078]
[1750549262384,16.496,2239.7,2238.2,3.2078]
[1750549262385,50.3728,2240.2,2239.6,0.89274]
[1750549262687,3.2078,2239.9,2239.4,3.2078]
[1750549262887,3.2078,2240.3,2239.4,3.2078]
[1750549263084,3.2078,2240.3,2239.5,3.6384]
[1750549263296,0.08927774,2240.2,2239.7,3.2078]
[1750549263498,0.08927774,2240.2,2239.9,0.89262]
[1750549263696,0.08927774,2240.2,2240.1,0.89256]
[1750549264201,0.08927774,2240.2,2240.1,4.10036]
[1750549264991,7.74e-06,2240.2,2240.1,4.10036]
[1750549265301,7.74e-06,2240.2,2240.1,3.2078]
[1750549265599,4.10006,2240.9,2240.2,0.89249]
[1750549265801,3.8064,2240.8,2240.3,0.89248]
[1750549266289,4.6987,2240.8,2240.2,3.7862]
[1750549266495,3.2078,2240.6,2239.9,0.89264]
[1750549266693,3.8064,2240.5,2240.0,0.8926]
[1750549266891,3.8064,2240.5,2239.8,3.2078]
[1750549266892,3.8064,2240.5,2239.9,4.67884]
[1750549267096,3.2078,2240.3,2239.8,3.2078]
[1750549267301,3.4876,2240.2,2239.8,3.2078]
[1750549267500,3.2078,2240.3,2239.8,3.2078]
[1750549267696,3.2078,2241.1,2240.2,3.2078]
[1750549267902,3.2078,2241.1,2240.5,3.2078]
[1750549268102,3.2078,2241.1,2240.6,3.6464]
[1750549268298,3.2078,2241.1,2240.6,0.89233]
[1750549268504,3.2078,2240.7,2239.8,3.2078]
[1750549268705,3.2078,2240.3,2239.5,6.8542]
[1750549268895,15.9379347,2241.0,2239.5,6.8542]
[1750549268896,3.2078,2240.4,2239.5,3.6464]
[1750549269096,3.4876,2240.3,2239.6,0.89274]
[1750549269411,3.2078,2240.7,2240.3,0.89246]
[1750549269700,3.2078,2240.7,2240.2,0.8925]
[1750549269897,4.10016,2240.7,2239.9,3.6464]
[1750549270094,6.6954,2240.7,2240.4,0.89243]
[1750549270295,3.2078,2241.0,2240.1,5.43918]
[1750549270503,3.2078,2241.0,2240.4,3.2078]
[1750549271300,0.89225,2240.9,2240.3,0.89246]
[1750549271503,7.58737,2240.9,2240.1,3.2078]
[1750549271705,7.58737,2240.9,2239.7,3.4918]
[1750549271706,4.09995,2241.2,2240.6,0.89235]
[1750549272003,16.487,2241.5,2240.8,3.2078]
[1750549272004,3.4873,2241.4,2240.8,3.2078]
[1750549272210,3.4873,2241.4,2240.6,3.4884]
[1750549272211,4.09995,2241.2,2240.6,3.4884]
[1750549272402,0.89214,2241.2,2240.6,3.4884]
[1750549272603,0.89209,2241.3,2240.7,0.89232]
[1750549272907,0.89214,2241.2,2240.7,0.89232]
[1750549273212,0.89214,2241.2,2239.9,16.487]
[1750549273213,2.23082,2240.7,2239.3,3.2078]
[1750549273403,3.2078,2240.5,2240.0,3.2078]
[1750549273804,3.2078,2240.5,2239.2,12.4503347]
[1750549273805,3.2078,2240.5,2240.1,0.89253]
[1750549274002,3.2078,2240.5,2240.1,0.89255]
[1750549274210,3.2078,2240.5,2239.8,3.811]
[1750549274414,7.88329,2240.8,2240.3,0.89247]
[1750549274615,6.991,2240.8,2240.3,0.89247]
[1750549274807,6.991,2240.8,2240.4,0.89242]
[1750549275115,3.2078,2240.8,2240.4,0.89242]
[1750549275507,3.2078,2240.8,2240.5,0.8924]
[1750549275706,3.2078,2240.8,2240.2,3.811]
[1750549275906,47.131,2240.9,2240.2,3.811]
[1750549276211,3.7832,2241.2,2240.8,0.89227]
[1750549276510,3.7832,2241.2,2240.9,0.89223]
[1750549276716,3.7832,2241.2,2240.5,3.4794]
[1750549276903,16.484,2241.3,2240.5,3.4794]
[1750549277108,4.64581,2241.5,2241.0,0.89217]
[1750549277410,0.89205,2241.4,2240.9,0.89222]
[1750549277716,4.64585,2241.4,2240.9,0.89222]
[1750549277908,4.64586,2241.4,2240.9,4.37162]
[1750549278309,6.9616,2241.4,2240.5,3.2078]
[1750549278511,3.2078,2241.1,2240.9,0.89223]
[1750549278814,6.9616,2241.4,2240.9,0.89224]
[1750549279010,6.9616,2241.4,2240.6,2.23092]
[1750549279206,0.89194,2241.7,2241.2,0.89212]
[1750549279614,4.50179,2241.8,2241.3,0.89207]
[1750549279814,3.6099,2241.8,2241.2,3.5498]
[1750549280120,0.89197,2241.6,2241.2,3.5498]
[1750549280509,3.6099,2241.8,2241.1,3.2078]
[1750549280716,3.6099,2241.8,2241.2,3.5498]
[1750549280904,2.23054,2241.0,2239.4,3.2078]
[1750549281210,0.89258,2240.1,2239.8,3.5498]
[1750549281414,20.0899,2240.9,2238.9,3.2078]
[1750549281415,3.2078,2240.0,2238.9,3.2078]
[1750549281629,3.2078,2239.4,2238.9,3.2078]
[1750549281932,3.2078,2239.4,2238.9,3.29712958]
[1750549282230,3.2078,2239.4,2238.9,4.19015958]
[1750549282419,3.2078,2239.4,2238.9,4.10083]
[1750549282625,3.2078,2239.4,2239.0,0.893]
[1750549282933,3.2078,2240.2,2239.8,0.89264]
[1750549283227,3.2078,2240.2,2239.2,3.2078]
[1750549283228,3.2078,2240.3,2239.5,3.2078]
[1750549283423,3.2078,2240.3,2239.6,4.45774]
[1750549283424,4.67476,2240.2,2239.6,4.45774]
[1750549283638,3.2078,2240.3,2239.6,6.7728]
[1750549284021,7.88239,2240.6,2239.9,3.2078]
[1750549284216,0.89248,2240.3,2239.8,0.89266]
[1750549284420,0.89242,2240.5,2239.7,3.565]
[1750549284622,0.89252,2240.2,2239.7,3.565]
[1750549284825,4.10032,2240.3,2239.7,4.45771]
[1750549285018,3.2078,2240.3,2239.7,3.565]
[1750549285217,4.10031,2240.3,2239.7,4.45772]
[1750549285429,3.2078,2240.3,2239.8,0.89268]
[1750549285727,3.2078,2240.3,2239.9,3.6599]
[1750549285934,3.2078,2240.6,2239.6,3.2078]
[1750549286127,0.89247,2240.4,2239.8,0.89266]
[1750549286431,3.2078,2240.0,2239.6,3.6599]
[1750549286634,3.2078,2240.0,2239.0,6.7171]
[1750549286829,4.66867,2239.9,2239.1,3.6599]
[1750549287027,4.66867,2239.9,2239.3,0.89286]
[1750549287231,4.66867,2239.9,2239.4,0.89283]
[1750549287430,3.2078,2240.3,2239.3,3.2078]
[1750549287624,0.89253,2240.2,2239.7,0.8927]
[1750549287828,19.6888,2240.4,2239.4,3.6599]
[1750549288027,4.09992,2241.3,2240.3,3.2078]
[1750549288230,6.9838,2241.3,2240.7,0.8923]
[1750549288424,3.2078,2241.3,2240.6,3.2078]
[1750549288624,7.5351,2241.7,2241.0,3.2078]
[1750549288831,0.08922198,2241.6,2241.5,0.89201]
[1750549289131,1.98e-06,2241.6,2241.5,4.09981]
[1750549289326,1.98e-06,2241.6,2241.5,9.09981]
[1750549290127,1.98e-06,2241.6,2240.9,3.2078]
[1750549290332,3.20780198,2241.6,2241.0,4.315]
[1750549290532,1.98e-06,2241.6,2241.0,4.315]
[1750549290732,1.98e-06,2241.6,2241.5,4.09981]
[1750549290928,0.06847599,2241.7,2241.5,3.2078]
[1750549291127,0.06847599,2241.7,2241.2,3.2078]
[1750549291438,400.0,2242.0,2241.7,0.89191]
[1750549291734,400.89182,2242.0,2241.5,4.09979]
[1750549291931,4.92411341,2241.9,2241.3,4.315]
[1750549292235,3.2078,2241.6,2240.3,0.89246]
[1750549292430,0.89231,2240.8,2240.2,0.8925]
[1750549292732,3.2078,2241.0,2240.3,3.2078]
[1750549292935,1.71668603,2240.9,2240.5,0.89238]
[1750549293140,1.71668603,2240.8,2240.6,0.89234]
[1750549293336,5.73875034,2241.3,2240.7,4.4563]
[1750549293532,6.03499629,2241.2,2240.7,4.4563]
[1750549293724,1.71399629,2241.1,2240.8,0.89226]
[1750549293926,1.71399629,2241.0,2240.9,5.34854]
[1750549294128,4.321,2241.5,2240.9,5.34854]
[1750549294439,1.78285566,2241.4,2241.0,0.89218]
[1750549294634,1.71437967,2241.3,2241.0,0.8922]
[1750549294936,1.71437967,2241.2,2241.0,0.89218]
[1750549295133,0.06847599,2241.4,2240.9,7.6641]
[1750549295330,3.2078,2241.6,2240.9,7.6641]
[1750549295531,1.71448132,2241.5,2240.9,7.6641]
[1750549295732,4.5092,2241.7,2241.3,0.89209]
[1750549295733,1.71448132,2241.4,2241.3,0.89209]
[1750549295936,403.2078,2242.0,2241.8,0.89185]
[1750549296236,1.71497374,2241.9,2241.4,4.2609]
[1750549296436,403.2078,2242.0,2241.7,0.89191]
[1750549296744,1.71431625,2241.9,2241.7,0.89191]
[1750549296934,403.2078,2242.0,2241.6,3.2078]
[1750549297130,1.7143752,2241.9,2241.7,4.2609]
[1750549297326,403.2078,2242.0,2241.7,4.2609]
[1750549297530,1.71394548,2241.9,2240.6,3.2078]
[1750549297737,3.2078,2241.7,2240.9,7.797]
[1750549297931,1.71394548,2241.6,2241.4,0.89203]
[1750549298129,1.71394548,2241.5,2241.3,0.89205]
[1750549298431,0.89189,2241.8,2241.3,0.89207]
[1750549298630,1.71332334,2241.7,2240.9,7.797]
[1750549298833,1.71332334,2241.6,2241.5,0.89198]
[1750549299033,4.3395,2241.9,2241.2,3.2078]
[1750549299231,1.7137048,2241.8,2241.5,0.89198]
[1750549299432,1.7137048,2241.7,2241.4,0.89202]
[1750549299739,1.71428095,2241.6,2241.5,0.89201]
[1750549299936,1.71428095,2241.6,2241.4,0.89202]
[1750549300238,4.3395,2241.9,2241.3,4.5892]
[1750549300435,1.71450806,2241.8,2241.5,0.89198]
[1750549300632,1.71450806,2241.7,2241.4,0.89202]
[1750549300936,0.89191,2241.8,2241.3,5.48127]
[1750549301142,1.71450633,2241.7,2241.4,0.89204]
[1750549301335,4.3395,2241.9,2241.4,0.89204]
[1750549301533,3.2078,2241.6,2240.8,0.89226]
[1750549301730,4.09991,2241.3,2240.9,0.89224]
[1750549301926,6.13402619,2241.5,2240.8,4.5658]
[1750549301927,1.71432619,2241.2,2241.0,0.89219]
[1750549302139,0.89205,2241.4,2240.9,0.89223]
[1750549302340,0.06847599,2240.9,2240.8,5.45806]
[1750549302640,0.06847599,2240.9,2240.8,5.45808]
[1750549303341,0.06847599,2240.9,2240.6,3.2078]
[1750549303529,0.06847599,2240.9,2240.8,0.89228]
[1750549303736,11.15553034,2241.9,2241.4,0.89202]
[1750549303938,2.53095034,2242.4,2241.9,0.89185]
[1750549304132,0.89162,2242.5,2241.9,0.89185]
[1750549304333,7.3317,2242.6,2241.8,3.2078]
[1750549304638,4.9227785,2241.9,2241.0,3.2078]
[1750549304939,0.89186,2241.9,2241.5,0.89199]
[1750549305136,1.71483179,2241.8,2241.1,4.5038]
[1750549305333,1.71483179,2241.7,2241.5,0.89198]
[1750549305536,400.0,2242.0,2241.7,0.89189]
[1750549305734,1.71491121,2241.9,2241.6,5.39575]
[1750549305935,400.0,2242.0,2241.7,0.89191]
[1750549306137,400.0,2242.0,2241.9,0.89185]
[1750549306336,400.0,2242.0,2241.8,4.5038]
[1750549306547,400.0,2242.0,2241.9,0.89185]
[1750549306939,400.0,2242.0,2241.8,5.39567]
[1750549307143,400.0,2242.0,2241.8,4.5038]
[1750549307344,400.0,2242.0,2241.9,0.89185]
[1750549307545,400.0,2242.0,2241.8,5.39566]
[1750549307739,400.89181,2242.0,2241.8,4.5038]
[1750549307947,400.0,2242.0,2241.8,5.39567]
[1750549308250,400.0,2242.0,2241.8,4.5038]
[1750549308441,0.06847599,2241.9,2241.8,4.5038]
[1750549308647,0.06847599,2241.9,2241.8,5.39569]
[1750549308842,0.06847599,2241.9,2241.8,4.5038]
[1750549309342,3.2078,2241.6,2239.6,3.2078]
[1750549309544,3.2078,2239.8,2239.3,4.3058]
[1750549309737,3.2078,2239.4,2238.1,3.2078]
[1750549309938,3.2078,2238.9,2238.1,3.2078]
[1750549310139,3.2078,2238.2,2237.5,7.5565]
[1750549310639,3.2078,2237.6,2236.9,4.1208]
[1750549310842,1.70493632,2237.5,2236.8,3.2078]
[1750549311149,1.70493632,2237.5,2236.9,0.08940945]
[1750549311150,4.6305,2237.5,2236.9,0.08940945]
[1750549311346,0.8938,2237.0,2236.9,0.08940945]
[1750549311646,3.2078,2237.0,2236.9,0.08940945]
[1750549311848,9.1016,2237.0,2236.9,9.45e-06]
[1750549312045,10.79998964,2237.0,2236.9,9.45e-06]
[1750549312450,3.2078,2237.0,2236.9,9.45e-06]
[1750549312751,3.2078,2238.0,2237.3,0.89365]
[1750549312953,3.2078,2237.7,2237.2,3.2078]
[1750549313243,8.7276,2238.2,2236.7,3.2078]
[1750549313244,3.2078,2237.4,2236.7,3.2078]
[1750549313453,40.42,2238.0,2236.4,4.642]
[1750549313454,3.2078,2236.8,2236.4,4.642]
[1750549313641,3.2078,2236.8,2236.0,3.2078]
[1750549313944,0.89399,2236.6,2235.8,3.27627599]
[1750549314144,28.5943347,2237.3,2235.8,3.27627599]
[1750549314145,4.4808,2236.5,2235.9,4.642]
[1750549314539,0.89391,2236.8,2236.0,3.2078]
[1750549314748,3.2078,2236.7,2235.9,7.8498]
[1750549315049,3.2078,2236.4,2235.8,3.2078]
[1750549315343,3.2078,2236.0,2235.3,3.2078]
[1750549315543,4.4808,2235.9,2235.0,7.8498]
[1750549315743,7.6886,2235.9,2235.0,7.8498]
[1750549316051,7.6886,2235.9,2235.0,4.642]
[1750549316345,7.6886,2235.9,2234.8,3.2078]
[1750549316346,3.2078,2235.5,2234.8,3.2078]
[1750549316546,3.2078,2235.9,2235.4,3.2078]
[1750549316747,4.10179,2236.6,2235.8,0.89427]
[1750549316955,4.6268,2236.7,2236.4,3.2078]
[1750549317152,3.2078,2236.6,2235.9,3.2078]
[1750549317450,3.2078,2236.4,2235.6,3.2078]
[1750549317652,4.10196,2236.1,2235.2,3.2078]
[1750549317843,3.2078,2235.8,2235.3,4.3444]
[1750549318048,3.2078,2235.5,2234.9,3.2078]
[1750549318244,16.158,2235.4,2234.7,3.2078]
[1750549318544,3.2078,2235.0,2234.0,3.2078]
[1750549318748,3.2078,2235.0,2233.6,8.6592]
[1750549318749,3.2078,2235.9,2234.7,3.2078]
[1750549318950,3.2078,2235.6,2234.8,4.75799346]
[1750549319141,4.6059,2235.8,2234.8,4.75799346]
[1750549319345,3.2078,2235.3,2234.9,0.89462]
[1750549319642,3.2078,2235.4,2234.9,3.2078]
[1750549319947,3.2078,2235.1,2234.8,0.08949346]
[1750549320341,40.351,2235.9,2234.8,0.08949346]
[1750549320342,3.2078,2235.6,2234.8,3.29729346]
[1750549320546,3.2078,2236.2,2235.5,3.2078]
[1750549320744,3.2078,2236.2,2235.6,4.6685]
[1750549320945,4.6059,2236.9,2236.1,3.2078]
[1750549321143,4.6059,2236.9,2236.0,3.2078]
[1750549321342,3.2078,2236.5,2236.0,4.6685]
[1750549321556,4.10181,2236.5,2235.9,3.2078]
[1750549321756,12.4503347,2236.0,2234.9,5.31034]
[1750549321947,7.718,2235.9,2234.9,3.2078]
[1750549322150,3.2078,2235.5,2234.5,3.2078]
[1750549322350,4.5102,2235.4,2234.5,3.2078]
[1750549322658,3.2078,2234.9,2234.1,7.6235]
[1750549322846,3.2078,2235.0,2234.2,4.5568]
[1750549323149,3.2078,2235.4,2234.8,3.2078]
[1750549323351,3.2078,2235.7,2235.1,3.2078]
[1750549323548,3.2078,2237.2,2235.6,2.23587]
[1750549323751,3.2078,2236.3,2235.7,4.5568]
[1750549323945,19.0358,2236.7,2235.7,4.5568]
[1750549324148,4.5102,2236.6,2235.9,3.2078]
[1750549324352,3.2078,2237.1,2236.5,3.2078]
[1750549324750,4.5102,2237.0,2236.0,3.2078]
[1750549324959,4.5102,2237.0,2236.4,4.10182]
[1750549325152,3.2078,2236.5,2235.6,3.2078]
[1750549325350,4.5102,2237.0,2236.4,3.2078]
[1750549325548,4.5102,2237.0,2236.5,4.2598]
[1750549325753,3.2078,2236.9,2236.0,3.2078]
[1750549325953,4.426,2236.8,2236.1,3.2078]
[1750549326155,7.6338,2236.8,2236.1,3.2078]
[1750549326462,3.2078,2237.1,2236.2,4.2598]
[1750549326763,3.2078,2236.3,2235.0,3.2078]
[1750549326963,0.89448,2235.4,2235.0,3.2078]
[1750549327153,3.2078,2236.1,2235.3,3.2078]
[1750549327349,0.89428,2235.8,2235.3,3.2078]
[1750549327556,63.027,2236.2,2235.3,3.2078]
[1750549327557,3.2078,2236.4,2235.7,3.2078]
[1750549327759,47.199,2237.1,2235.9,3.2078]
[1750549327760,3.2078,2236.9,2235.9,3.2078]
[1750549327965,0.89396,2236.6,2236.0,0.89418]
[1750549328151,0.89394,2236.7,2236.1,0.89415]
[1750549328355,4.10189,2236.3,2235.8,4.2598]
[1750549328556,3.2078,2236.6,2235.8,4.2598]
[1750549328765,3.2078,2235.9,2235.3,3.2078]
[1750549328960,3.2078,2235.9,2235.1,4.1659]